fUSD/lending_fUSD_20250522
["ID","MTS","AMOUNT","RATE_DAILY","PERIOD"]
[362003112,1747932650767,-420.0,0.00032876,5]
[362003113,1747932650777,-530.89,0.00032876,5]
[362003114,1747932650787,-420.0,0.00032876,5]
[362003115,1747932650798,-420.0,0.00032876,5]
[362003116,1747932650809,-557.05,0.00032876,5]
[362003117,1747932650819,-420.0,0.00032876,5]
[362003118,1747932650829,-420.0,0.00032876,5]
[362003119,1747932650839,-420.0,0.00032876,5]
[362003120,1747932650850,-420.0,0.00032876,5]
[362003121,1747932650860,-625.99,0.00032876,5]
[362003122,1747932650871,-151.0,0.00032876,7]
[362003123,1747932650881,-420.0,0.00032876,5]
[362003124,1747932650891,-420.0,0.00032876,5]
[362003125,1747932650902,-484.71,0.00032876,5]
[362003126,1747932650912,-563.43,0.00032876,5]
[362003127,1747932650922,-479.38,0.00032876,5]
[362003128,1747932650932,-420.0,0.00032876,5]
[362003129,1747932650942,-441.90508896,0.00032876,5]
[362003130,1747932650952,-960.89,0.00032876,5]
[362003131,1747932650963,-420.0,0.00032876,5]
[362003132,1747932650973,-532.8,0.00032876,5]
[362003133,1747932650984,-155.21829871,0.00032876,5]
[362003134,1747932650995,-420.0,0.00032876,5]
[362003135,1747932651005,-420.0,0.00032876,5]
[362003136,1747932651015,-151.727771,0.00032876,5]
[362003137,1747932651026,-507.39,0.00032876,5]
[362003138,1747932651037,-420.0,0.00032876,5]
[362003139,1747932651048,-420.0,0.00032876,5]
[362003140,1747932651059,-420.0,0.00032876,5]
[362003141,1747932651070,-431.99,0.00032876,5]
[362003142,1747932651081,-420.0,0.00032876,5]
[362003143,1747932651091,-420.0,0.00032876,5]
[362003144,1747932651101,-698.73,0.00032876,5]
[362003145,1747932651112,-420.0,0.00032876,5]
[362003146,1747932651750,-515.86,0.00032876,5]
[362003147,1747932651781,-420.0,0.00032876,5]
[362003148,1747932651801,-420.0,0.00032876,5]
[362003149,1747932651819,-420.0,0.00032876,5]
[362003150,1747932651831,-420.0,0.00032876,5]
[362003151,1747932651841,-420.0,0.00032876,5]
[362003152,1747932651851,-428.77,0.00032876,5]
[362003153,1747932651860,-420.0,0.00032876,5]
[362003154,1747932651870,-420.0,0.00032876,5]
[362003155,1747932651879,-420.0,0.00032876,5]
[362003156,1747932651889,-420.0,0.00032876,5]
[362003157,1747932651899,-548.2,0.00032876,5]
[362003158,1747932651910,-420.0,0.00032876,5]
[362003159,1747932651919,-420.0,0.00032876,5]
[362003160,1747932651929,-420.0,0.00032876,5]
[362003161,1747932651938,-420.0,0.00032876,5]
[362003162,1747932651947,-420.0,0.00032876,5]
[362003163,1747932651958,-420.0,0.00032876,5]
[362003164,1747932651967,-420.0,0.00032876,5]
[362003165,1747932651977,-420.0,0.00032876,5]
[362003166,1747932651986,-493.77,0.00032876,5]
[362003167,1747932651995,-151.0,0.00032876,7]
[362003168,1747932652005,-186.69928,0.00032876,7]
[362003169,1747932652016,-420.0,0.00032876,5]
[362003170,1747932652026,-420.0,0.00032876,5]
[362003171,1747932652036,-420.0,0.00032876,5]
[362003172,1747932652045,-486.42,0.00032876,5]
[362003173,1747932652054,-423.82,0.00032876,5]
[362003174,1747932652064,-691.43,0.00032876,5]
[362003175,1747932652073,-420.0,0.00032876,5]
[362003176,1747932652083,-420.0,0.00032876,5]
[362003177,1747932652092,-420.0,0.00032876,5]
[362003178,1747932652102,-420.0,0.00032876,5]
[362003179,1747932652112,-420.0,0.00032876,5]
[362003180,1747932652121,-420.0,0.00032876,5]
[362003181,1747932652130,-420.0,0.00032876,5]
[362003182,1747932652140,-420.0,0.00032876,5]
[362003183,1747932652150,-420.0,0.00032876,5]
[362003184,1747932652160,-420.0,0.00032876,5]
[362003185,1747932652169,-844.45,0.00032876,5]
[362003186,1747932652179,-420.0,0.00032876,5]
[362003187,1747932652189,-420.0,0.00032876,5]
[362003188,1747932652198,-420.0,0.00032876,5]
[362003189,1747932652208,-420.0,0.00032876,5]
[362003190,1747932652218,-420.0,0.00032876,5]
[362003191,1747932652227,-420.0,0.00032876,5]
[362003192,1747932652237,-420.0,0.00032876,5]
[362003193,1747932652246,-420.0,0.00032876,5]
[362003194,1747932652256,-420.0,0.00032876,5]
[362003195,1747932652266,-211.443275,0.00032876,7]
[362003196,1747932652275,-420.0,0.00032876,5]
[362003197,1747932652285,-420.0,0.00032876,5]
[362003198,1747932652296,-420.0,0.00032876,5]
[362003199,1747932652306,-881.99,0.00032876,5]
[362003200,1747932652317,-420.0,0.00032876,5]
[362003201,1747932652326,-552.37,0.00032876,5]
[362003202,1747932652335,-420.0,0.00032876,5]
[362003203,1747932652344,-421.99,0.00032876,5]
[362003204,1747932652355,-420.0,0.00032876,5]
[362003205,1747932652364,-420.0,0.00032876,5]
[362003206,1747932652374,-420.0,0.00032876,5]
[362003207,1747932652384,-420.0,0.00032876,5]
[362003208,1747932652398,-908.05,0.00032876,5]
[362003209,1747932652407,-485.31,0.00032876,5]
[362003210,1747932652417,-420.0,0.00032876,5]
[362003211,1747932652426,-518.18642981,0.00032876,5]
[362003212,1747932652435,-420.0,0.00032876,5]
[362003213,1747932652445,-420.0,0.00032876,5]
[362003214,1747932652454,-420.0,0.00032876,5]
[362003215,1747932652463,-447.71263915,0.00032876,5]
[362003216,1747932652472,-420.0,0.00032876,5]
[362003217,1747932652481,-420.0,0.00032876,5]
[362003218,1747932652491,-566.73,0.00032876,5]
[362003219,1747932652500,-420.0,0.00032876,5]
[362003220,1747932652510,-490.6177832,0.00032876,5]
[362003221,1747932652519,-420.0,0.00032876,5]
[362003222,1747932652529,-420.0,0.00032876,5]
[362003223,1747932652538,-420.0,0.00032876,5]
[362003224,1747932652548,-420.0,0.00032876,2]
[362003225,1747932652558,-665.85,0.00032876,5]
[362003226,1747932652567,-420.0,0.00032876,5]
[362003227,1747932652578,-420.0,0.00032876,5]
[362003228,1747932652589,-420.0,0.00032876,5]
[362003229,1747932652599,-420.0,0.00032876,5]
[362003230,1747932652609,-420.0,0.00032876,5]
[362003231,1747932652619,-420.0,0.00032876,5]
[362003232,1747932652629,-823.49,0.00032876,5]
[362003233,1747932652639,-151.0,0.00032876,7]
[362003234,1747932652649,-420.0,0.00032876,5]
[362003235,1747932652659,-534.31,0.00032876,5]
[362003236,1747932652668,-420.0,0.00032876,5]
[362003237,1747932652679,-420.0,0.00032876,5]
[362003238,1747932652688,-420.0,0.00032876,5]
[362003239,1747932652698,-420.0,0.00032876,5]
[362003240,1747932652707,-1020.23,0.00032876,5]
[362003241,1747932652717,-420.0,0.00032876,5]
[362003242,1747932652726,-420.0,0.00032876,5]
[362003243,1747932652735,-180.1286468,0.00032876,5]
[362003244,1747932652744,-420.0,0.00032876,5]
[362003245,1747932652754,-502.52,0.00032876,5]
[362003246,1747932652764,-420.0,0.00032876,5]
[362003247,1747932652773,-745.98,0.00032876,5]
[362003248,1747932652783,-420.0,0.00032876,5]
[362003249,1747932652793,-420.0,0.00032876,5]
[362003250,1747932652802,-420.0,0.00032876,5]
[362003251,1747932652812,-420.0,0.00032876,5]
[362003252,1747932652821,-420.0,0.00032876,5]
[362003253,1747932652831,-677.9,0.00032876,5]
[362003254,1747932652840,-518.06,0.00032876,5]
[362003255,1747932652850,-420.0,0.00032876,5]
[362003256,1747932652859,-151.0,0.00032876,7]
[362003257,1747932652868,-151.0,0.00032876,7]
[362003258,1747932652878,-420.0,0.00032876,5]
[362003259,1747932652887,-634.95,0.00032876,5]
[362003260,1747932652897,-656.0,0.00032876,5]
[362003261,1747932652906,-420.0,0.00032876,5]
[362003262,1747932652916,-420.0,0.00032876,5]
[362003263,1747932652925,-793.55,0.00032876,5]
[362003264,1747932652935,-420.0,0.00032876,5]
[362003265,1747932652945,-151.0,0.00032876,7]
[362003266,1747932652954,-420.0,0.00032876,5]
[362003267,1747932652963,-1650.53,0.00032876,5]
[362003268,1747932652973,-420.0,0.00032876,5]
[362003269,1747932652982,-151.0,0.00032876,7]
[362003270,1747932652991,-474.03,0.00032876,5]
[362003271,1747932653002,-420.0,0.00032876,5]
[362003272,1747932653011,-420.0,0.00032876,5]
[362003273,1747932653021,-420.0,0.00032876,5]
[362003274,1747932653031,-583.47,0.00032876,5]
[362003275,1747932653041,-420.0,0.00032876,5]
[362003276,1747932653050,-420.0,0.00032876,5]
[362003277,1747932653061,-420.0,0.00032876,5]
[362003278,1747932653070,-420.0,0.00032876,5]
[362003279,1747932653080,-77.77438228,0.00032876,5]
[362003281,1747932661368,372.68,0.00013699,2]
[362003282,1747932894200,250.0,0.00015,2]
[362003283,1747932895021,300.0,0.00017,2]
[362003284,1747932896099,350.0,0.00019,2]
[362003285,1747932959116,670.2,0.0002,2]
[362003287,1747933552136,-372.68,0.00020187,2]
[362003288,1747933552161,-37.15893131,0.00021,2]
[362003289,1747933554086,-362.84106869,0.00021,2]
[362003290,1747933554107,-450.0,0.00023,2]
[362003291,1747933554129,-155.51191141,0.00024328,2]
[362003293,1747933742743,353.46,0.00013699,2]
[362003295,1747933762093,-353.46,0.00020187,2]
[362003296,1747933762115,-178.34444122,0.00024328,2]
[362003297,1747933762137,-78.00268674,0.00024328,2]
[362003298,1747933762158,-280.4096285,0.00025,2]
[362003299,1747933767096,-200.7058278,0.00025,2]
[362003300,1747933773095,-18.8845437,0.00025,2]
[362003305,1747933832015,-270.33973497,0.00026676,2]
[362003306,1747933832037,-83.12026503,0.00026676,2]
[362003307,1747933832048,-337.69573497,0.00027,2]
[362003308,1747933832069,-212.30426503,0.00027,2]
[362003309,1747933832080,-120.49063743,0.00029,2]
[362003310,1747933832093,-479.50936257,0.00029,2]
[362003311,1747933832104,-207.4,0.00029763,2]
[362003312,1747933832114,-716.75,0.00029781,2]
[362003313,1747933832124,-650.0,0.00031,2]
[362003314,1747933832134,-154.36,0.00031065,2]
[362003315,1747933832144,-154.36,0.00031096,2]
[362003316,1747933832155,-200.0,0.00031109,2]
[362003317,1747933832166,-365.00145137,0.00031122,2]
[362003318,1747933832179,-634.99854863,0.00031122,2]
[362003319,1747933832189,-154.36,0.00031127,2]
[362003320,1747933832200,-215.0738,0.00031132,2]
[362003321,1747933832211,-154.36,0.00031158,2]
[362003322,1747933832222,-154.36,0.00031189,2]
[362003323,1747933832232,-154.36,0.0003122,2]
[362003324,1747933832242,-288.29,0.00031345,2]
[362003325,1747933832252,-250.0,0.00031454,2]
[362003326,1747933832267,-155.38,0.00031473,120]
[362003327,1747933832280,-152.27,0.00031611,2]
[362003328,1747933832290,-675.38353965,0.00031698,2]
[362003329,1747933832301,-300.0,0.00031792,3]
[362003331,1747933832311,-400.0,0.00031792,2]
[362003333,1747933832321,-4498.25,0.00031793,2]
[362003335,1747933832331,-152.25,0.00031833,2]
[362003337,1747933832342,-201.43962394,0.000319,25]
[362003339,1747933832352,-166.49,0.00032036,2]
[362003341,1747933832363,-151.79,0.00032036,2]
[362003343,1747933832374,-716.75,0.00032045,2]
[362003345,1747933832384,-166.35,0.00032061,2]
[362003347,1747933832394,-453.31,0.00032078,2]
[362003350,1747933832405,-150.0,0.00032117,7]
[362003352,1747933832415,-882.898,0.00032287,2]
[362003354,1747933832425,-540.125,0.00032287,2]
[362003355,1747933832435,-162.34830997,0.00032381,2]
[362003356,1747933832450,-450.0,0.00032381,2]
[362003357,1747933832462,-1342.54300077,0.00032381,2]
[362003359,1747933837737,-737.86207482,0.00032381,2]
[362003360,1747933837747,-201.43962383,0.0003245,26]
[362003361,1747933837759,-1004.15246221,0.000325,2]
[362003362,1747933837898,-1136.90269644,0.000325,2]
[362003388,1747933840148,-260.537,0.000325,2]
[362003410,1747933842879,-27598.40784135,0.000325,2]
[362003412,1747933842889,-223.0315306,0.00032501,2]
[362003414,1747933842898,-2077.70794,0.0003255,2]
[362003416,1747933842908,-153.526827,0.00032686,4]
[362003418,1747933842917,-500.0,0.00032776,2]
[362003420,1747933842927,-5000.0,0.00032776,2]
[362003422,1747933842936,-335.87260881,0.00032776,2]
[362003424,1747933842945,-398.35904499,0.00032776,15]
[362003426,1747933842955,-872.99714658,0.00032776,6]
[362003428,1747933842966,-110149.3302,0.00032866,2]
[362003430,1747933842975,-127541.329705,0.00032866,2]
[362003432,1747933842985,-334.33543783,0.00032866,2]
[362003434,1747933842994,-3445.5875722,0.00032868,2]
[362003436,1747933843002,-459.95853614,0.00032873,5]
[362003438,1747933843012,-500.0,0.00032873,5]
[362003440,1747933843021,-500.0,0.00032873,5]
[362003442,1747933843031,-500.0,0.00032873,5]
[362003444,1747933843040,-500.0,0.00032873,2]
[362003446,1747933843050,-227.59475069,0.00032875,11]
[362003448,1747933843059,-312709.1116605,0.00032875,11]
[362003450,1747933843072,-198094.24719909,0.00032875,11]
[362003452,1747933843082,-420.0,0.00032876,5]
[362003454,1747933843091,-537.0,0.00032876,5]
[362003456,1747933843101,-420.0,0.00032876,5]
[362003457,1747933843110,-420.0,0.00032876,5]
[362003458,1747933843119,-420.0,0.00032876,5]
[362003459,1747933843128,-420.0,0.00032876,5]
[362003460,1747933843138,-185.842114,0.00032876,5]
[362003461,1747933843213,-398.295523,0.00032876,5]
[362003462,1747933843223,-152.959474,0.00032876,5]
[362003463,1747933843233,-200.0,0.00032876,2]
[362003464,1747933843243,-420.0,0.00032876,5]
[362003465,1747933843252,-420.0,0.00032876,5]
[362003468,1747933843262,-420.0,0.00032876,5]
[362003471,1747933843271,-420.0,0.00032876,5]
[362003474,1747933843280,-420.0,0.00032876,5]
[362003476,1747933843289,-420.0,0.00032876,5]
[362003479,1747933843299,-420.0,0.00032876,5]
[362003481,1747933843308,-433.1702179,0.00032876,5]
[362003482,1747933843317,-420.0,0.00032876,5]
[362003483,1747933843327,-617.84,0.00032876,5]
[362003484,1747933843335,-557.43,0.00032876,5]
[362003485,1747933843344,-420.0,0.00032876,5]
[362003486,1747933843354,-420.0,0.00032876,5]
[362003487,1747933843363,-433.93,0.00032876,5]
[362003488,1747933843372,-420.0,0.00032876,5]
[362003489,1747933843381,-420.0,0.00032876,5]
[362003490,1747933843391,-468.52,0.00032876,5]
[362003491,1747933843400,-485.86811098,0.00032876,5]
[362003492,1747933843409,-420.0,0.00032876,5]
[362003493,1747933843419,-420.0,0.00032876,5]
[362003494,1747933843429,-420.0,0.00032876,5]
[362003495,1747933843438,-420.0,0.00032876,5]
[362003496,1747933843447,-420.0,0.00032876,5]
[362003497,1747933843457,-420.0,0.00032876,5]
[362003498,1747933843466,-420.0,0.00032876,5]
[362003499,1747933843476,-420.0,0.00032876,5]
[362003500,1747933843485,-420.0,0.00032876,5]
[362003501,1747933843495,-420.0,0.00032876,5]
[362003502,1747933843504,-274.06470332,0.00032876,5]
[362003503,1747933843513,-420.0,0.00032876,5]
[362003504,1747933843523,-453.05,0.00032876,5]
[362003505,1747933843532,-420.0,0.00032876,5]
[362003506,1747933843541,-420.0,0.00032876,5]
[362003507,1747933843551,-457.43,0.00032876,5]
[362003508,1747933843560,-420.0,0.00032876,5]
[362003509,1747933843570,-420.0,0.00032876,5]
[362003510,1747933843579,-550.44,0.00032876,5]
[362003511,1747933843589,-420.0,0.00032876,5]
[362003512,1747933843598,-474.51265646,0.00032876,5]
[362003513,1747933843608,-420.0,0.00032876,5]
[362003514,1747933843617,-659.52,0.00032876,5]
[362003515,1747933843626,-420.0,0.00032876,5]
[362003516,1747933843636,-420.0,0.00032876,5]
[362003517,1747933843646,-420.0,0.00032876,5]
[362003518,1747933843655,-420.0,0.00032876,5]
[362003519,1747933843665,-420.0,0.00032876,5]
[362003520,1747933843674,-577.96,0.00032876,5]
[362003521,1747933843684,-420.0,0.00032876,5]
[362003522,1747933843693,-335.45200682,0.00032876,5]
[362003523,1747933843703,-420.0,0.00032876,5]
[362003524,1747933843718,-244.88355424,0.00032876,5]
[362003525,1747933843728,-463.1,0.00032876,5]
[362003526,1747933843737,-547.33,0.00032876,5]
[362003527,1747933843746,-420.0,0.00032876,5]
[362003528,1747933843757,-482.08135949,0.00032876,5]
[362003529,1747933843767,-757.97,0.00032876,33]
[362003530,1747933843776,-420.0,0.00032876,5]
[362003531,1747933843785,-420.0,0.00032876,5]
[362003532,1747933843796,-420.0,0.00032876,5]
[362003533,1747933843805,-463.0,0.00032876,5]
[362003534,1747933843815,-599.91,0.00032876,5]
[362003535,1747933843824,-420.0,0.00032876,5]
[362003536,1747933843834,-464.52,0.00032876,5]
[362003537,1747933843843,-420.0,0.00032876,5]
[362003538,1747933843853,-420.0,0.00032876,5]
[362003539,1747933843863,-486.25,0.00032876,5]
[362003540,1747933843872,-420.0,0.00032876,5]
[362003541,1747933843882,-697.31,0.00032876,5]
[362003542,1747933843891,-420.0,0.00032876,5]
[362003543,1747933843901,-151.0,0.00032876,7]
[362003544,1747933843910,-420.0,0.00032876,5]
[362003545,1747933843920,-420.0,0.00032876,5]
[362003546,1747933843929,-420.0,0.00032876,5]
[362003547,1747933843938,-420.0,0.00032876,5]
[362003548,1747933843948,-420.0,0.00032876,5]
[362003549,1747933843958,-420.0,0.00032876,5]
[362003550,1747933843967,-420.0,0.00032876,5]
[362003551,1747933843977,-420.0,0.00032876,5]
[362003552,1747933843986,-420.0,0.00032876,5]
[362003553,1747933843995,-420.0,0.00032876,5]
[362003554,1747933844004,-420.0,0.00032876,5]
[362003555,1747933844013,-420.0,0.00032876,5]
[362003556,1747933844023,-529.35,0.00032876,5]
[362003557,1747933844032,-420.0,0.00032876,5]
[362003558,1747933844041,-420.0,0.00032876,5]
[362003559,1747933844050,-420.0,0.00032876,5]
[362003560,1747933844059,-420.0,0.00032876,5]
[362003561,1747933844070,-151.0,0.00032876,7]
[362003562,1747933844080,-420.0,0.00032876,5]
[362003563,1747933844089,-420.0,0.00032876,5]
[362003564,1747933844098,-420.0,0.00032876,5]
[362003565,1747933844107,-468.75,0.00032876,5]
[362003566,1747933844117,-420.0,0.00032876,5]
[362003567,1747933844126,-662.62,0.00032876,5]
[362003568,1747933844135,-420.0,0.00032876,5]
[362003569,1747933844144,-420.0,0.00032876,5]
[362003570,1747933844154,-628.66,0.00032876,5]
[362003571,1747933844163,-420.0,0.00032876,5]
[362003572,1747933844172,-420.0,0.00032876,5]
[362003573,1747933844181,-420.0,0.00032876,5]
[362003574,1747933844190,-420.0,0.00032876,5]
[362003575,1747933844199,-420.0,0.00032876,5]
[362003576,1747933844209,-420.0,0.00032876,5]
[362003577,1747933844218,-420.0,0.00032876,5]
[362003578,1747933844229,-510.99,0.00032876,5]
[362003579,1747933844240,-420.0,0.00032876,5]
[362003580,1747933844249,-420.0,0.00032876,5]
[362003581,1747933844259,-642.96,0.00032876,5]
[362003582,1747933844268,-442.25,0.00032876,5]
[362003583,1747933844278,-420.0,0.00032876,5]
[362003584,1747933844287,-151.0,0.00032876,7]
[362003585,1747933844297,-151.0,0.00032876,7]
[362003586,1747933844306,-420.0,0.00032876,5]
[362003587,1747933844315,-420.0,0.00032876,5]
[362003588,1747933844325,-420.0,0.00032876,5]
[362003589,1747933844334,-420.0,0.00032876,5]
[362003590,1747933844344,-420.0,0.00032876,5]
[362003591,1747933844353,-420.0,0.00032876,5]
[362003592,1747933844362,-469.92,0.00032876,5]
[362003593,1747933844371,-420.0,0.00032876,5]
[362003594,1747933844380,-420.0,0.00032876,5]
[362003595,1747933844390,-420.0,0.00032876,5]
[362003596,1747933844399,-420.0,0.00032876,5]
[362003597,1747933844409,-867.63,0.00032876,5]
[362003598,1747933844418,-420.0,0.00032876,5]
[362003599,1747933844428,-420.0,0.00032876,5]
[362003600,1747933844437,-420.0,0.00032876,5]
[362003601,1747933844447,-589.11,0.00032876,5]
[362003602,1747933844457,-420.0,0.00032876,5]
[362003603,1747933844466,-420.0,0.00032876,5]
[362003604,1747933844475,-420.0,0.00032876,5]
[362003605,1747933844484,-420.0,0.00032876,5]
[362003606,1747933844494,-420.0,0.00032876,5]
[362003607,1747933844503,-420.0,0.00032876,5]
[362003608,1747933844512,-466.21,0.00032876,5]
[362003609,1747933844521,-420.0,0.00032876,5]
[362003610,1747933844530,-420.0,0.00032876,5]
[362003611,1747933844540,-420.0,0.00032876,5]
[362003612,1747933844549,-420.0,0.00032876,5]
[362003613,1747933844558,-420.0,0.00032876,5]
[362003614,1747933844567,-420.0,0.00032876,5]
[362003615,1747933844576,-420.0,0.00032876,5]
[362003616,1747933844585,-165.55135,0.00032876,7]
[362003617,1747933844594,-420.0,0.00032876,5]
[362003618,1747933844603,-420.0,0.00032876,5]
[362003619,1747933844612,-420.0,0.00032876,5]
[362003620,1747933844621,-454.28,0.00032876,5]
[362003621,1747933844630,-464.75,0.00032876,5]
[362003622,1747933844639,-318.41419242,0.00032876,5]
[362003623,1747933844648,-420.0,0.00032876,5]
[362003624,1747933844658,-543.11,0.00032876,5]
[362003625,1747933844667,-420.0,0.00032876,5]
[362003626,1747933844676,-420.0,0.00032876,5]
[362003627,1747933844686,-420.0,0.00032876,5]
[362003628,1747933844696,-420.0,0.00032876,5]
[362003629,1747933844705,-510.32,0.00032876,5]
[362003630,1747933844720,-420.0,0.00032876,5]
[362003631,1747933844729,-561.89,0.00032876,5]
[362003632,1747933844738,-420.0,0.00032876,5]
[362003633,1747933844747,-420.0,0.00032876,5]
[362003634,1747933844757,-420.0,0.00032876,5]
[362003635,1747933844766,-420.0,0.00032876,5]
[362003636,1747933844775,-482.92,0.00032876,5]
[362003637,1747933844785,-420.0,0.00032876,5]
[362003638,1747933844794,-640.96,0.00032876,5]
[362003639,1747933844806,-628.61,0.00032876,5]
[362003640,1747933844816,-676.98,0.00032876,5]
[362003641,1747933844826,-420.0,0.00032876,5]
[362003642,1747933844835,-423.96029506,0.00032876,5]
[362003643,1747933844844,-508.22,0.00032876,5]
[362003644,1747933844853,-420.0,0.00032876,5]
[362003645,1747933844863,-420.0,0.00032876,5]
[362003646,1747933844871,-420.0,0.00032876,5]
[362003647,1747933844881,-428.04,0.00032876,5]
[362003648,1747933844890,-420.0,0.00032876,5]
[362003649,1747933844898,-438.13,0.00032876,5]
[362003650,1747933844907,-420.0,0.00032876,5]
[362003651,1747933844917,-420.0,0.00032876,5]
[362003652,1747933844926,-420.0,0.00032876,5]
[362003653,1747933844935,-928.4,0.00032876,5]
[362003654,1747933844944,-420.0,0.00032876,5]
[362003655,1747933844953,-485.06,0.00032876,5]
[362003656,1747933844962,-559.16,0.00032876,5]
[362003657,1747933844972,-851.37,0.00032876,5]
[362003658,1747933844981,-420.0,0.00032876,5]
[362003659,1747933844990,-455.05,0.00032876,5]
[362003660,1747933844999,-281.8,0.00032876,5]
[362003661,1747933845008,-420.0,0.00032876,5]
[362003662,1747933845017,-420.0,0.00032876,5]
[362003663,1747933845027,-451.54,0.00032876,5]
[362003664,1747933845037,-488.65,0.00032876,5]
[362003665,1747933845046,-420.0,0.00032876,5]
[362003666,1747933845055,-420.0,0.00032876,5]
[362003667,1747933845063,-420.0,0.00032876,5]
[362003668,1747933845073,-420.0,0.00032876,5]
[362003669,1747933845082,-420.0,0.00032876,5]
[362003670,1747933845091,-500.0,0.00032876,5]
[362003671,1747933845101,-439.74,0.00032876,5]
[362003672,1747933845110,-420.0,0.00032876,5]
[362003673,1747933845119,-579.3,0.00032876,5]
[362003674,1747933845128,-420.0,0.00032876,5]
[362003675,1747933845137,-1187.49,0.00032876,5]
[362003676,1747933845146,-456.47,0.00032876,5]
[362003677,1747933845155,-420.0,0.00032876,5]
[362003678,1747933845164,-420.0,0.00032876,5]
[362003679,1747933845173,-420.0,0.00032876,5]
[362003680,1747933845182,-485.73,0.00032876,5]
[362003681,1747933845191,-585.77,0.00032876,5]
[362003682,1747933845201,-420.0,0.00032876,5]
[362003683,1747933845211,-420.0,0.00032876,5]
[362003684,1747933845219,-420.0,0.00032876,5]
[362003685,1747933845228,-415.95018431,0.00032876,5]
[362003686,1747933845238,-420.0,0.00032876,5]
[362003687,1747933845247,-688.23,0.00032876,5]
[362003688,1747933845256,-637.3,0.00032876,5]
[362003689,1747933845265,-420.0,0.00032876,5]
[362003690,1747933845275,-420.0,0.00032876,5]
[362003691,1747933845284,-420.0,0.00032876,5]
[362003692,1747933845293,-420.0,0.00032876,5]
[362003693,1747933845303,-473.24,0.00032876,5]
[362003694,1747933845312,-420.0,0.00032876,5]
[362003695,1747933845321,-535.16,0.00032876,5]
[362003696,1747933845330,-420.0,0.00032876,5]
[362003697,1747933845340,-420.0,0.00032876,5]
[362003698,1747933845349,-420.0,0.00032876,5]
[362003699,1747933845358,-151.0,0.00032876,7]
[362003700,1747933845367,-420.0,0.00032876,5]
[362003701,1747933845377,-420.0,0.00032876,5]
[362003702,1747933845386,-445.46865029,0.00032876,5]
[362003703,1747933845395,-420.0,0.00032876,5]
[362003704,1747933845404,-420.0,0.00032876,5]
[362003705,1747933845414,-420.0,0.00032876,5]
[362003706,1747933845423,-151.0,0.00032876,7]
[362003707,1747933845432,-420.0,0.00032876,5]
[362003708,1747933845442,-420.0,0.00032876,5]
[362003709,1747933845451,-1350.67,0.00032876,5]
[362003710,1747933845461,-420.0,0.00032876,5]
[362003711,1747933845470,-420.0,0.00032876,5]
[362003712,1747933845479,-420.0,0.00032876,5]